Cogmind - Beta 12 @@@ ROGUE MODE // 2023.03.15 @ 21:36:35 Player: Red Box Result: Destroyed by G-47 Trooper with Particle Gun Performance ------------- Evolutions (0) 0 Regions Visited (2) 400 Robots Destroyed (20) 100 Value Destroyed (453) 453 Prototype IDs (3) 60 Alien Tech Used (0) 0 Bonus (0) 0 TOTAL SCORE: 1013 Bonus ------- None Cogmind --------- Core Integrity 0/250 Matter 273/300 Energy 239/250 System Corruption 0% Temperature Hot (291) Movement Rolling (95) Ox1 Location -10/Mines Parts ------- > --- POWER (1) -------- Ion Engine > --- PROPULSION (2) --- Wheel Wheel > --- UTILITY (2) ------ Large Storage Unit Improved Terrain Scanner > --- WEAPON (2) ------- Particle Gun Assault Rifle > --- INVENTORY (15) --- Light Ion Engine Light Treads Light Treads Compact Wheel Heat Sink High-capacity Storage Unit Targeting Computer ECM Suite Light Cannon Light Cannon Datajack Mining Laser Peak State ------------ > --- POWER ------------ Ion Engine > --- PROPULSION ------- Wheel Wheel > --- UTILITY ---------- Large Storage Unit Improved Terrain Scanner > --- WEAPON ----------- Particle Gun Assault Rifle > --- INVENTORY -------- Light Ion Engine Light Treads Light Treads Compact Wheel Heat Sink High-capacity Storage Unit Targeting Computer ECM Suite Light Cannon Mining Laser [Rating: 11] Favorites ----------- Power Ion Engine Engine Ion Engine Propulsion Wheel Leg Aluminum Leg Wheel Wheel Utility Improved Terrain Scanner Device Improved Terrain Scanner Storage High-capacity Storage Unit Weapon Assault Rifle Energy Gun Particle Gun Ballistic Gun Assault Rifle Special Weapon Mining Laser Build | -11 -10 -10 ------- Run | Jun Mat Min Slots Evolved . | . . . Power . | . . . Propulsion . | . . . Utility . | . . . Weapon . | . . . Parts Attached 19 | 8 11 . Power 2 | 1 1 . Engine 2 | 1 1 . Core . | . . . Reactor . | . . . Propulsion 4 | 2 2 . Treads . | . . . Leg 2 | 2 . . Wheel 2 | . 2 . Hover . | . . . Flight . | . . . Utility 4 | 2 2 . Device 1 | 1 . . Storage 3 | 1 2 . Processor . | . . . Hackware . | . . . Protection . | . . . Artifact . | . . . Weapon 9 | 3 6 . Energy Gun 3 | . 3 . Energy Cannon . | . . . Ballistic Gun 5 | 3 2 . Ballistic Cannon . | . . . Launcher . | . . . Special Weapon 1 | . 1 . Impact Weapon . | . . . Slashing Weapon . | . . . Piercing Weapon . | . . . Special Melee Weapon . | . . . Unidentified Prototypes . | . . . Parts Lost 3 | . 3 . Power . | . . . Propulsion 1 | . 1 . Utility . | . . . Weapon 2 | . 2 . Highest Loss Streak 1 | . 1 . To Critical Strikes . | . . . Average Slot Usage (%) 98 | . 98 100 Engine 13 | . 13 14 Leg 10 | . 13 . Wheel 16 | . 14 28 Device 14 | . 14 14 Storage 14 | . 14 14 Energy Gun 7 | . 5 14 Ballistic Gun 18 | . 20 14 Special Weapon 1 | . 1 . Naked Turns . | . . . Heaviest Build 50 | 15 50 31 Greatest Support 20 | 20 20 20 Greatest Overweight (x) 4 | 2 4 1 Average Overweight (x) 1 | . 1 1 Largest Inventory Capacity 20 | 8 20 15 Average Capacity 16 | 7 17 15 Most Carried 12 | 8 10 12 Average Carried 8 | 5 7 11 Final Capacity 15 | 8 15 15 Final Carried 12 | 8 10 12 Class Distribution -------------------- 100% | Mutant Dominant Class ---------------- Mutant | -10/Materials Mutant | -10/Mines Resources | -11 -10 -10 ----------- Run | Jun Mat Min Matter Collected 599 | 304 277 18 Remotely . | . . . Salvage Created 589 | 93 417 79 Parts 42 | 6 31 5 Haulers Intercepted . | . . . Recyclers Shooed . | . . . Parts Field Recycled . | . . . Retrieved Matter . | . . . Parts Self-Destructed . | . . . Prevented . | . . . Kills | -11 -10 -10 ------- Run | Jun Mat Min Combat Hostiles Destroyed 15 | . 11 4 Guns 15 | . 11 4 Classes Destroyed 5 | 2 3 . Tunneler 1 | 1 . . Recycler 1 | 1 . . Watcher 3 | . 3 . Swarmer 6 | . 3 3 Grunt 9 | . 8 1 Best Kill Streak 4 | 1 4 3 Combat Bots Only 3 | . 3 3 Max Kills in Single Turn 1 | 1 1 1 Gunslinging . | . . . Exploded . | . . . Melee . | . . . Uniques/NPCs Destroyed . | . . . Combat | -11 -10 -10 -------- Run | Jun Mat Min Damage Taken 946 | . 671 275 Core 254 | . 163 91 Absorbed by Shields . | . . . Regen/Repaired (Parts) 72 | . 72 . Core Remaining (%) 100 | 100 . . Volleys Fired 78 | 4 59 15 Largest 2 | 2 2 2 Hottest 100 | 40 100 85 Shots Fired 135 | 8 97 30 Gun 134 | 8 96 30 Cannon . | . . . Launcher . | . . . Special 1 | . 1 . Kinetic 111 | 8 88 15 Thermal 24 | . 9 15 Explosive . | . . . Electromagnetic . | . . . Robot Hit Streak 9 | 2 9 5 Robot Miss Streak 4 | 3 3 4 Penetration Max . | . . . Secondary Targets 3 | . 1 2 Max Gunslinging Chain 1 | . 1 1 Shots Hit Robots 86 | 4 65 17 Core Hits 36 | 3 27 6 Critical Kills . | . . . Critical Parts Destroyed . | . . . Critical Strikes 1 | . 1 . Burn 1 | . 1 . Melee Attacks . | . . . Impact . | . . . Slashing . | . . . Piercing . | . . . Sneak Attacks . | . . . Combat Hostiles . | . . . Follow-up Attacks . | . . . Damage Inflicted 1026 | 52 726 248 Guns 1026 | 52 726 248 Cannons . | . . . Explosions . | . . . Melee . | . . . Ramming . | . . . Kinetic 792 | 52 618 122 Thermal 234 | . 108 126 Explosive . | . . . Electromagnetic . | . . . Impact . | . . . Slashing . | . . . Piercing . | . . . Highest Corruption . | . . . Average Corruption . | . . . Corruption Purged . | . . . Corruption Blocked . | . . . Overload Shots . | . . . Overflow Damage . | . . . Projectiles . | . . . Explosions . | . . . Melee . | . . . Knockbacks . | . . . Impact . | . . . Kinetic . | . . . Secondary . | . . . Self-Inflicted Damage . | . . . Shots . | . . . Rammed . | . . . Targets Rammed . | . . . Kicked . | . . . Crushed . | . . . Highest Temperature 282 | . 134 282 Average Temperature 65 | . 33 106 Received Heat Transfer 438 | . 339 99 Siege Activations . | . . . Robots Corrupted . | . . . Combat Hostiles . | . . . Parts Fried . | . . . Impact Corruptions . | . . . Robots Melted . | . . . Combat Hostiles . | . . . Parts Melted 2 | . 1 1 Heat Transferred 629 | . 333 296 Parts Sabotaged . | . . . Parts Stolen . | . . . Parts Stripped . | . . . Power Chain Reactions . | . . . Missiles Intercepted . | . . . Alert | -11 -10 -10 ------- Run | Jun Mat Min Peak Influence 235 | 10 235 91 Initial 6 | . 6 1 Average 65 | 3 67 70 Maximum Alert Level 1 | . 1 . Low Security (%) 97 | 100 97 100 Level 1 2 | . 2 . Level 2 . | . . . Level 3 . | . . . Level 4 . | . . . Level 5 . | . . . High Security . | . . . Max Security . | . . . Squads Dispatched 1 | . 1 . Investigation . | . . . Extermination . | . . . Reinforcement 1 | . 1 . Assault . | . . . Garrison . | . . . Intercept . | . . . Searches Triggered . | . . . Construction Impeded . | . . . Haulers Reinforced . | . . . Active Scanning Responses . | . . . Cargo Convoy Interrupts . | . . . Stealth | -11 -10 -10 --------- Run | Jun Mat Min Distress Signals 2 | . 2 . Communications Jammed . | . . . Distress Signals . | . . . Times Spotted 25 | . 19 6 Peak Tracking Total 4 | . 4 3 Tactical Retreats 2 | . . 2 Traps | -11 -10 -10 ------- Run | Jun Mat Min Traps Triggered . | . . . Indirectly . | . . . Trap Hack Attempts . | . . . Triggered . | . . . Disarmed . | . . . Reprogrammed . | . . . Reused . | . . . Traps Extracted . | . . . Installed . | . . . Triggered . | . . . Machines | -11 -10 -10 ---------- Run | Jun Mat Min Machines Disabled . | . . . Max in Single Turn . | . . . Machines Repaired . | . . . Machines Sabotaged . | . . . Overloaded Fab Kills . | . . . Hacking | -11 -10 -10 --------- Run | Jun Mat Min Machines Accessed 10 | . 10 . Terminals 7 | . 7 . Fabricators . | . . . Repair Stations 1 | . 1 . Recycling Units 2 | . 2 . Scanalyzers . | . . . Garrison Access . | . . . Total Hacks 36 | . 36 . Successful 28 | . 28 . Failed 7 | . 7 . Catastrophic . | . . . Database Lockouts 1 | . 1 . Manual 20 | . 20 . Terminals 26 | . 26 . Fabricators . | . . . Repair Stations 6 | . 6 . Recycling Units 4 | . 4 . Scanalyzers . | . . . Garrison Access . | . . . Terminal Hacks 8 | . 8 . Robot Analysis 1 | . 1 . Prototype ID Bank 2 | . 2 . Level Access Points 1 | . 1 . Terminal Index 1 | . 1 . Unreport Threat 2 | . 2 . Locate Traps 1 | . 1 . Fabricator Hacks . | . . . Repair Station Hacks 6 | . 6 . Scan Component 3 | . 3 . Repair 3 | . 3 . Recycling Unit Hacks 2 | . 2 . Report Inventory 1 | . 1 . Retrieve Components 1 | . 1 . Scanalyzer . | . . . Garrison Access Hacks . | . . . Unauthorized Hacks 12 | . 12 . Terminals 10 | . 10 . Track 3 | . 3 . Assimilate 1 | . 1 . Botnet 5 | . 5 . Operators 1 | . 1 . Fabricators . | . . . Repair Stations . | . . . Recycling Units 2 | . 2 . Reject 1 | . 1 . Mask 1 | . 1 . Scanalyzers . | . . . Garrison Access . | . . . Data Cores Recovered . | . . . Used . | . . . Hacking Detections 8 | . 8 . Full Trace Events . | . . . Feedback Events . | . . . Feedback Blocked . | . . . Robot Schematics Acquired . | . . . Robots Built . | . . . Authchips . | . . . Time . | . . . Total Robot Build Rating . | . . . Part Schematics Acquired . | . . . Parts Built . | . . . Authchips . | . . . Time . | . . . Total Part Build Rating . | . . . Parts Repaired 3 | . 3 . Time 84 | . 84 . Parts Recycled . | . . . Recycled Matter . | . . . Retrieved Matter . | . . . Retrieved Components 1 | . 1 . Parts Scanalyzed . | . . . Part Schematics Acquired . | . . . Parts Damaged . | . . . Bothacking | -11 -10 -10 ------------ Run | Jun Mat Min Used RIF Installer . | . . . Robots Hacked . | . . . Non-combat . | . . . Combat . | . . . Robot Hacks Applied . | . . . Relay Couplers Released . | . . . Fabnet Peak Effective % . | . . . Robots Rewired . | . . . Allies Hacked . | . . . Hacks Repelled . | . . . Allies | -11 -10 -10 -------- Run | Jun Mat Min Total Allies 1 | . 1 . Largest Group 1 | . 1 1 Highest-Rated Group 10 | . 10 10 Highest-Rated Ally 10 | . 10 10 Total Orders 1 | . . 1 STAY 1 | . . 1 Ally Attacks . | . . . Total Damage . | . . . Kills . | . . . Allies Corrupted . | . . . Allies Melted . | . . . Intel | -11 -10 -10 ------- Run | Jun Mat Min Robot Analysis Total 1 | . 1 . Derelict Logs Recovered 1 | . . 1 Drone Launches . | . . . Drone Recoveries . | . . . Exploration | -11 -10 -10 ------------- Run | Jun Mat Min Turns Passed 1814 | 90 1410 314 Spaces Moved 958 | 56 691 211 Core 16 | 16 . . Treads . | . . . Legs 252 | 40 212 . Wheels 690 | . 479 211 Hover . | . . . Flight . | . . . Fastest Speed 50 | 50 95 95 Average Speed 120 | 105 128 95 Slowest Speed 400 | 150 400 95 Overloaded Moves . | . . . Propulsion Burnouts . | . . . Robots Hopped . | . . . Cave-ins Triggered . | . . . Exploration Rate (%) 52 | 5 97 55 Regions Visited 2 Branch Regions 1 Pre-discovered Areas . | . . . Known Exits Taken . | . . . Unknown Exits Taken 2 | 1 1 . Scrap Searched 2 | . . 2 Spaces Dug 1 | . 1 . Terrain Destroyed 1 | . 1 . Melee . | . . . Projectile 1 | . 1 . AOE . | . . . Terrain Rammed . | . . . Walls Destroyed . | . . . Machines Disabled . | . . . Actions | -11 -10 -10 --------- Run | Jun Mat Min Total 1490 | 75 1118 297 Wait 416 | . 347 69 Move 956 | 55 690 211 Hop . | . . . Pick Up 17 | 8 7 2 Fast Attach 10 | 7 3 . Attach 5 | . 5 . Detach 1 | . 1 . Swap 4 | 1 3 . Drop 3 | . 3 . Fire 78 | 4 59 15 Melee . | . . . Ram . | . . . Kick . | . . . Crush . | . . . Escape Stasis . | . . . Rewire . | . . . Trap . | . . . Miscellaneous . | . . . Route ------- -11/Junkyard -10/Materials (discovered 5 exits: *Mat x3 / [*Min x2]) -10/Mines History --------- Turn | Location | Event 13 | -11/Junkyard | Discovered new exit (range 15) 91 | -11/Junkyard | Entered Materials 219 | -10/Materials | Discovered new exit (range 7) 313 | -10/Materials | Build established: Mutant 734 | -10/Materials | Core integrity fell below 50% 742 | -10/Materials | Discovered new exit (range 13) 898 | -10/Materials | Central database locked down 932 | -10/Materials | Discovered new exit (range 8) 1144 | -10/Materials | Discovered new exit (range 12) 1211 | -10/Materials | Discovered new exit (range 15) 1394 | -10/Materials | Repaired Particle Gun 1422 | -10/Materials | Repaired Com. Wheel 1449 | -10/Materials | Repaired Ion Engine 1481 | -10/Materials | Identified exit to Materials 1501 | -10/Materials | Entered Mines 1501 | -10/Mines | Accompanied by 1 ally 1512 | -10/Mines | Core integrity fell below 20% 1642 | -10/Mines | Learned Materials stockpile data 1815 | -10/Mines | Destroyed by G-47 Trooper with Particle Gun Last Messages --------------- 01521_ Acquired 15 matter. 01523_ Acquired 3 matter. 01542_ Searching scrap... 01542_ Found Structural Scanner. 01542_ Found Terrain Scanner. 01542_ Found Flight Unit. 01542_ Found Datajack. 01542_ Found 26 Matter. 01544_ Acquired Datajack. 01548_ K-01 Serf collects debris. 01572_ T-07 Excavator is excavating. 01642_ Acquired derelict log, extracted data. Data stored: Materials stockpile data. 01664_ Searching scrap... 01664_ Found Lgt. Cannon. 01664_ Found 10 Matter. 01666_ Acquired Lgt. Cannon. 01761_ The unstable cave ceiling collapses. 01794_ G-34 Mercenary destroyed. 01794_ Switching to secondary target: G-47 Trooper. Map ----- +----------------------------------------------------+ | ????????????????????????????????####????????????# | | ????????????????????????????????????????????????# | | ??????????????#??????#???????#?????????????????### | | ????????????? ?????????????#?????????????????????# | | ????????????????????????????????????????????????## | | ???????????????????#????????????????????????????# | | ????????????????#?????????????#?????????????#???# | | ???????????????????????????????????#?????????#?## | | ????????????????????#????????#????????#????#??## | | ???????????????#??????#?????????????????#?????# | | ???????????????????????###?????#??????????????# | | ??????????????????#########???????????????????# # | | ?????????????????## ## ###########?????#??## # | | ??????###????##### ########## | | ?????## #### # | | ????## """ ######### | | ????# """ #?#?#???######## | | ???# """ ##??????????????# | | ???# ###?????????#?#???## | | ???## #####?#????????#????#### | | ????###### ### ##????????#?#??????## | | ?????????##### ### ### #?????#?##?????????## | | ?????????????###??# ####o ##????#?####????????## | | ?????#??????#?????# % k #?????## ##??????### | | ???????????????? ?# #### ##???## #?????# | | ???????????????? ## #####@ #?### #??#?? | | ????????????"" *%= ###! #??#??? % | | ?????????????" g !t ####### ## | | ????????#???? ########## ## | | ??????????? ???#?????## ### | | ??????????######??##???????#####?## | | ??????????????????????#???????#???# ## [ # | | ???????????#????#?????????????????## #### # | | ????????????????#?????#?????????#?########???#### | | ????????????#???????????????#?????????##?????????# | | ??????????????????????##??#??????????????????????? | | | | | | | | | | | | | | | | | | | | | | | | | | | | | +----------------------------------------------------+ Best States ------------- Heat Dissipation 25 Energy Generation 10 Energy Capacity 250 Matter Stores 300 Matter Capacity 300 Sight Range 16 Terrain Scan Range 16 Terrain Scan Density 10 Evasion (%) 55 Item Schematics ----------------- None Robot Schematics ------------------ None Fabricated ------------ Nothing Alien Tech Used ----------------- None Achievements -------------- None Challenges ------------ None Game ------ Seed LightpackModifiedMatter Manual? 0 Play Time 00:13:00 Cumulative 574.9 hours Start 2023.03.15 @ 21:24:39 End 2023.03.15 @ 21:36:35 Sessions 1 Manual Loads 0 Difficulty Rogue Special Mode None Game No. 407 Rogue 407 Adventurer 0 Explorer 0 Win Type - Total 1 Types 1/0/0/0/0/0/0/0/0 Lore% 70 Gallery% 78 Achievement% 58 Wizard Run 0 Options --------- ASCII 0 Keyboard 0 Movement Mouse Keybinds 0 Fullscreen 1 Font 16/SmallcapsGlow Map View 75x55 Tactical HUD 1 Map Filters NONE Filters NONE Steam 1 RUN: 0882428f-c588-485a-a8f1-42318d46791d